fUSD/lending_fUSD_20251228
["ID","MTS","AMOUNT","RATE_DAILY","PERIOD"]
[399973025,1766958639703,-11229.94040773,0.00016498,2]
[399973027,1766958639713,-150.0,0.00016501,2]
[399973029,1766958639723,-150.0,0.00016507,2]
[399973031,1766958639733,-13009.11869563,0.0001651,2]
[399973033,1766958639743,-150.0,0.00016511,2]
[399973035,1766958639752,-443.51805555,0.00016521,2]
[399973037,1766958639762,-503.73099585,0.00016521,2]
[399973039,1766958639771,-1000.0,0.00016521,2]
[399973041,1766958639781,-150.0,0.00016523,2]
[399973044,1766958639791,-150.0,0.00016523,2]
[399973047,1766958639800,-172.21833333,0.00016529,2]
[399973049,1766958639809,-5888.0,0.00016529,2]
[399973051,1766958639819,-150.0,0.00016529,2]
[399973053,1766958639829,-150.0,0.00016533,2]
[399973055,1766958639838,-150.0,0.00016545,2]
[399973057,1766958639848,-150.0,0.00016549,2]
[399973060,1766958639859,-150.0,0.0001655,2]
[399973062,1766958639868,-150.0,0.00016551,2]
[399973064,1766958639878,-3598.0,0.00016551,2]
[399973065,1766958639888,-150.0,0.00016562,2]
[399973067,1766958639898,-150.0,0.00016562,2]
[399973069,1766958639907,-150.0,0.00016562,2]
[399973072,1766958639916,-150.0,0.00016575,2]
[399973073,1766958639925,-150.0,0.00016575,2]
[399973076,1766958639934,-3598.0,0.00016577,2]
[399973077,1766958639944,-165.1108,0.00016578,2]
[399973080,1766958639953,-150.0,0.00016579,2]
[399973082,1766958639963,-150.0,0.00016594,2]
[399973084,1766958639972,-150.0,0.00016594,2]
[399973086,1766958639982,-150.0,0.00016598,2]
[399973088,1766958639991,-150.0,0.000166,2]
[399973090,1766958640001,-166.14,0.00016603,2]
[399973092,1766958640011,-150.0,0.00016613,2]
[399973094,1766958640021,-150.0,0.00016626,2]
[399973096,1766958640031,-150.0,0.00016626,2]
[399973098,1766958640040,-30494.44023895,0.00016631,2]
[399973100,1766958640049,-150.0,0.00016632,2]
[399973102,1766958640058,-150.0,0.00016638,2]
[399973104,1766958640068,-150.0,0.00016647,2]
[399973106,1766958640078,-150.0,0.00016647,2]
[399973108,1766958640087,-150.0,0.00016647,2]
[399973110,1766958640097,-150.0,0.00016647,2]
[399973112,1766958640106,-150.0,0.00016652,2]
[399973114,1766958640116,-150.0,0.0001666,2]
[399973116,1766958640128,-1786.68622417,0.0001666,2]
[399973118,1766958640138,-1727.12,0.00016669,2]
[399973120,1766958640147,-150.0,0.00016677,2]
[399973122,1766958640156,-150.0,0.00016677,2]
[399973124,1766958640167,-164.0,0.0001668,2]
[399973126,1766958640179,-150.0,0.00016681,2]
[399973128,1766958640189,-150.0,0.00016681,2]
[399973130,1766958640198,-574.12855637,0.00016694,2]
[399973132,1766958640208,-209.40437684,0.00016694,2]
[399973134,1766958640217,-150.0,0.00016695,2]
[399973136,1766958640227,-150.0,0.00016699,2]
[399973138,1766958640236,-500.0,0.00016699,2]
[399973140,1766958640249,-150.0,0.00016699,2]
[399973142,1766958640259,-500.0,0.00016699,2]
[399973144,1766958640268,-150.0,0.00016699,2]
[399973146,1766958640278,-150.0,0.00016699,2]
[399973148,1766958640289,-244.86390051,0.00016699,2]
[399973150,1766958640298,-150.0,0.00016699,2]
[399973152,1766958640307,-200.0,0.00016699,2]
[399973154,1766958640317,-500.0,0.00016699,2]
[399973155,1766958640326,-237.83643607,0.00016699,2]
[399973157,1766958640335,-627.0,0.00016699,2]
[399973160,1766958640345,-500.0,0.00016699,2]
[399973161,1766958640354,-150.0,0.00016699,2]
[399973164,1766958640364,-150.0,0.00016699,2]
[399973166,1766958640374,-500.0,0.00016699,2]
[399973167,1766958640383,-500.0,0.00016699,2]
[399973169,1766958640393,-500.0,0.00016699,2]
[399973170,1766958640402,-152.95414215,0.00016699,2]
[399973171,1766958640412,-150.0,0.00016703,2]
[399973172,1766958640422,-150.0,0.00016703,2]
[399973173,1766958640431,-150.0,0.00016703,2]
[399973174,1766958640441,-1607.9,0.00016712,2]
[399973175,1766958640460,-172.21833333,0.00016714,2]
[399973176,1766958640470,-150.0,0.00016715,2]
[399973177,1766958640481,-150.0,0.00016725,2]
[399973178,1766958640491,-150.0,0.00016725,2]
[399973179,1766958640500,-164.91531166,0.00016726,2]
[399973180,1766958640510,-500.0,0.00016726,2]
[399973181,1766958640520,-150.0,0.00016726,2]
[399973182,1766958640529,-500.0,0.00016726,2]
[399973183,1766958640539,-176.84626368,0.00016726,2]
[399973184,1766958640548,-200.0,0.00016726,2]
[399973185,1766958640562,-150.0,0.00016726,2]
[399973186,1766958640579,-500.0,0.00016726,2]
[399973187,1766958640591,-627.0,0.00016726,2]
[399973188,1766958640607,-515.48135853,0.00016726,2]
[399973189,1766958640620,-150.0,0.00016726,2]
[399973190,1766958640632,-151.47551324,0.00016726,2]
[399973191,1766958640644,-500.0,0.00016726,2]
[399973192,1766958640655,-500.0,0.00016726,2]
[399973193,1766958640665,-500.0,0.00016726,2]
[399973194,1766958640675,-150.0,0.00016729,2]
[399973195,1766958640687,-150.0,0.00016729,2]
[399973196,1766958640698,-150.0,0.00016744,2]
[399973197,1766958640711,-150.0,0.00016748,2]
[399973198,1766958640723,-500.0,0.00016754,2]
[399973199,1766958640733,-350.0,0.00016754,2]
[399973200,1766958640745,-150.0,0.00016754,2]
[399973201,1766958640756,-500.0,0.00016754,2]
[399973202,1766958640768,-627.0,0.00016754,2]
[399973203,1766958640780,-150.0,0.00016754,2]
[399973204,1766958640791,-500.0,0.00016754,2]
[399973206,1766958640806,-210.81728361,0.00016754,2]
[399973207,1766958640818,-500.0,0.00016754,2]
[399973209,1766958640829,-150.0,0.00016755,2]
[399973211,1766958640842,-736.0,0.00016759,2]
[399973213,1766958640853,-150.0,0.0001676,2]
[399973214,1766958640865,-2500.0,0.00016764,2]
[399973215,1766958640876,-2500.0,0.00016764,2]
[399973216,1766958640887,-731.96614317,0.00016764,2]
[399973217,1766958640897,-1847.68423544,0.00016764,2]
[399973218,1766958640907,-1634.22445627,0.00016764,2]
[399973219,1766958640918,-2500.0,0.00016764,2]
[399973220,1766958640930,-1718.2586549,0.00016764,2]
[399973221,1766958640942,-1000.0,0.00016764,2]
[399973222,1766958640953,-173.239,0.00016765,2]
[399973223,1766958640965,-1532.278,0.00016765,2]
[399973224,1766958640975,-5888.0,0.00016766,2]
[399973225,1766958640987,-150.0,0.00016769,2]
[399973226,1766958641001,-150.0,0.00016774,2]
[399973227,1766958641019,-150.0,0.00016774,2]
[399973228,1766958641030,-150.0,0.0001678,2]
[399973229,1766958641041,-150.0,0.0001678,2]
[399973230,1766958641053,-500.0,0.00016781,2]
[399973231,1766958641064,-150.0,0.00016781,2]
[399973232,1766958641075,-594.96387073,0.00016781,2]
[399973233,1766958641087,-627.0,0.00016781,2]
[399973234,1766958641099,-225.38136853,0.00016781,2]
[399973235,1766958641112,-500.0,0.00016781,2]
[399973236,1766958641122,-163.86900378,0.00016781,2]
[399973237,1766958641135,-150.0,0.00016782,2]
[399973238,1766958641149,-152.09829773,0.00016788,2]
[399973239,1766958641163,-150.0,0.0001679,2]
[399973240,1766958641178,-150.0,0.00016792,2]
[399973241,1766958641194,-1000.0,0.000168,2]
[399973242,1766958641206,-150.0,0.00016806,2]
[399973243,1766958641218,-373.98935038,0.00016809,2]
[399973244,1766958641230,-150.0,0.00016809,2]
[399973245,1766958641243,-627.0,0.00016809,2]
[399973246,1766958641255,-500.0,0.00016809,2]
[399973247,1766958641267,-150.0,0.00016812,2]
[399973248,1766958641279,-150.0,0.00016816,2]
[399973249,1766958641291,-150.0,0.00016816,2]
[399973250,1766958641302,-150.0,0.00016832,2]
[399973251,1766958641313,-150.0,0.00016832,2]
[399973252,1766958641324,-250.0,0.00016836,2]
[399973253,1766958641340,-627.0,0.00016836,2]
[399973254,1766958641356,-500.0,0.00016836,2]
[399973255,1766958641369,-150.0,0.00016841,2]
[399973256,1766958641386,-150.0,0.00016845,2]
[399973257,1766958641398,-150.0,0.00016845,2]
[399973258,1766958641410,-500.0,0.00016846,2]
[399973259,1766958641423,-150.0,0.0001685,2]
[399973260,1766958641436,-150.0,0.00016856,2]
[399973261,1766958641446,-150.0,0.00016856,2]
[399973262,1766958641456,-150.0,0.00016858,2]
[399973263,1766958641475,-627.0,0.00016863,2]
[399973264,1766958641486,-361.20663021,0.00016863,2]
[399973265,1766958641496,-200.0,0.00016864,2]
[399973266,1766958641507,-25000.0,0.00016865,3]
[399973267,1766958641518,-500.0,0.00016873,2]
[399973268,1766958641530,-500.0,0.00016873,2]
[399973269,1766958641542,-500.0,0.00016873,2]
[399973270,1766958641555,-621.72362606,0.00016873,2]
[399973271,1766958641566,-526.32491477,0.00016873,2]
[399973272,1766958641579,-150.0,0.00016873,2]
[399973273,1766958641591,-25000.0,0.00016874,3]
[399973274,1766958641601,-185.19785801,0.00016881,2]
[399973275,1766958641611,-500.0,0.00016882,2]
[399973276,1766958641621,-500.0,0.00016882,2]
[399973277,1766958641632,-25000.0,0.00016882,3]
[399973278,1766958641642,-150.0,0.00016883,2]
[399973279,1766958641653,-150.0,0.00016883,2]
[399973280,1766958641664,-150.0,0.00016884,2]
[399973281,1766958641676,-3598.0,0.00016886,2]
[399973282,1766958641689,-150.0,0.00016889,2]
[399973283,1766958641700,-627.0,0.00016891,2]
[399973284,1766958641710,-25000.0,0.00016891,3]
[399973285,1766958641720,-185.37020135,0.00016897,2]
[399973286,1766958641730,-150.0,0.00016899,2]
[399973287,1766958641739,-1027.21410216,0.000169,2]
[399973288,1766958641749,-10000.0,0.000169,2]
[399973289,1766958641759,-970.09034207,0.000169,2]
[399973290,1766958641772,-11229.94040773,0.000169,2]
[399973291,1766958641783,-172.21833333,0.000169,2]
[399973292,1766958641794,-13009.11869563,0.000169,2]
[399973293,1766958641804,-219.13853976,0.000169,2]
[399973294,1766958641815,-157.28739986,0.000169,2]
[399973295,1766958641826,-4757.0,0.000169,2]
[399973296,1766958641836,-150.0,0.00016909,2]
[399973297,1766958641848,-203.9629744,0.00016911,2]
[399973298,1766958641858,-150.0,0.00016916,2]
[399973299,1766958641869,-627.0,0.00016918,2]
[399973300,1766958641880,-150.0,0.00016918,2]
[399973301,1766958641892,-150.0,0.00016921,2]
[399973302,1766958641903,-1000.0,0.00016932,2]
[399973303,1766958641914,-1000.0,0.00016932,2]
[399973304,1766958641925,-1000.0,0.00016932,2]
[399973305,1766958641936,-1000.0,0.00016932,2]
[399973306,1766958641948,-350.51,0.00016932,2]
[399973307,1766958641960,-1000.0,0.00016932,2]
[399973308,1766958641971,-1000.0,0.00016932,2]
[399973309,1766958641982,-1000.0,0.00016932,2]
[399973310,1766958641993,-768.217,0.00016932,2]
[399973311,1766958642005,-150.0,0.00016935,2]
[399973312,1766958642018,-150.0,0.00016935,2]
[399973313,1766958642030,-150.0,0.00016938,2]
[399973314,1766958642042,-150.0,0.00016943,2]
[399973315,1766958642054,-1727.12,0.00016943,2]
[399973316,1766958642066,-627.0,0.00016946,2]
[399973317,1766958642078,-150.0,0.00016952,2]
[399973318,1766958642089,-150.0,0.00016961,2]
[399973319,1766958642101,-150.11199507,0.00016973,2]
[399973320,1766958642111,-627.0,0.00016973,2]
[399973321,1766958642123,-200.0,0.00016973,2]
[399973322,1766958642133,-5888.0,0.00016974,2]
[399973323,1766958642156,-1607.9,0.00016986,2]
[399973324,1766958642172,-31952.41,0.00016986,2]
[399973325,1766958642184,-193.20504799,0.00016986,2]
[399973326,1766958642196,-261.52919059,0.00016986,2]
[399973327,1766958642208,-291.19227716,0.00016986,2]
[399973328,1766958642221,-298.68946488,0.00016986,2]
[399973329,1766958642232,-257.38593742,0.00016986,2]
[399973330,1766958642243,-191.18737209,0.00016986,2]
[399973331,1766958642255,-159.10391865,0.00016986,2]
[399973332,1766958642267,-288.29142727,0.00016986,2]
[399973333,1766958642278,-204.47837642,0.00016986,2]
[399973334,1766958642289,-157.03567619,0.00016986,2]
[399973335,1766958642300,-156.10987043,0.00016986,2]
[399973336,1766958642312,-266.31997745,0.00016986,2]
[399973337,1766958642324,-172.24524014,0.00016986,2]
[399973338,1766958642334,-273.23141722,0.00016986,2]
[399973339,1766958642346,-185.19785801,0.0001699,2]
[399973340,1766958642358,-500.0,0.00016995,2]
[399973341,1766958642369,-500.0,0.00016996,2]
[399973342,1766958642381,-500.0,0.00016996,2]
[399973343,1766958642391,-500.0,0.00016996,2]
[399973344,1766958642402,-500.0,0.00016996,2]
[399973345,1766958642414,-646.48024776,0.00016996,2]
[399973346,1766958642425,-500.0,0.00016996,2]
[399973347,1766958642436,-500.0,0.00016996,2]
[399973348,1766958642447,-500.0,0.00016996,2]
[399973349,1766958642458,-1368.7994911,0.00016997,2]
[399973350,1766958642469,-207780.63628872,0.00016997,2]
[399973351,1766958642691,-714.85895225,0.00016997,2]
[399973352,1766958642761,-500.0,0.00015669,2]
[399973353,1766958642771,-217.54388117,0.00015669,2]
[399973354,1766958642782,-213.49311883,0.00015669,2]
[399973355,1766958644147,-153.62408517,0.00015669,2]
[399973356,1766958644156,-270.75843191,0.00015669,2]
[399973357,1766958644167,-253.93306755,0.00015669,2]
[399973358,1766958644178,-500.0,0.00015669,2]
[399973359,1766958644187,-1576.42503913,0.00016997,2]
[399973360,1766958644198,-1004.90708819,0.00016997,2]
[399973361,1766958644395,-1182.8263,0.00013055,2]
[399973362,1766958644405,-1142.79350805,0.000169,2]
[399973363,1766958644414,-2980.38637485,0.00016997,2]
[399973366,1766958644761,-1.7e-07,0.00016997,2]
[399973367,1766958644773,-74337.14100279,0.00016997,2]
[399973368,1766958644783,-7389.3458678,0.00016997,2]
[399973369,1766958644794,-2003.3253696,0.00016997,2]
[399973370,1766958644805,-20922.5214833,0.00016997,2]
[399973371,1766958644816,-1067.799379,0.00016997,2]
[399973372,1766958644825,-1067.799379,0.00016997,2]
[399973373,1766958644835,-1067.799379,0.00016997,2]
[399973374,1766958644846,-1067.799379,0.00016997,2]
[399973375,1766958644855,-249.769813,0.00016997,2]
[399973376,1766958644865,-249.769813,0.00016997,2]
[399973377,1766958644875,-249.769813,0.00016997,2]
[399973378,1766958644885,-249.769813,0.00016997,2]
[399973379,1766958644894,-623.308417,0.00016997,2]
[399973380,1766958644904,-623.308417,0.00016997,2]
[399973381,1766958644913,-623.308417,0.00016997,2]
[399973382,1766958644923,-623.308417,0.00016997,2]
[399973383,1766958644934,-151.0,0.00016997,2]
[399973384,1766958644944,-1043.36845006,0.00016999,5]
[399973385,1766958644953,-300.0,0.00016999,2]
[399973386,1766958644962,-464.2399143,0.00016999,2]
[399973387,1766958644974,-500.0,0.00016999,2]
[399973388,1766958644984,-500.0,0.00016999,2]
[399973389,1766958644993,-500.0,0.00016999,2]
[399973390,1766958645002,-500.0,0.00016999,2]
[399973391,1766958645011,-500.0,0.00016999,2]
[399973392,1766958645021,-483.08577501,0.00016999,2]
[399973393,1766958645031,-300.0,0.00016999,2]
[399973394,1766958645040,-486.7841417,0.00016999,2]
[399973395,1766958645049,-500.0,0.00016999,2]
[399973396,1766958645059,-500.0,0.00016999,2]
[399973397,1766958645068,-500.0,0.00016999,2]
[399973398,1766958645087,-500.0,0.00016999,2]
[399973399,1766958645098,-193.237428,0.00016999,2]
[399973400,1766958645108,-500.0,0.00016999,2]
[399973401,1766958645118,-500.0,0.00016999,2]
[399973402,1766958645129,-190.55361039,0.00016999,2]
[399973403,1766958645139,-300.0,0.00016999,2]
[399973404,1766958645150,-666.0,0.00016999,2]
[399973405,1766958645160,-681.43055394,0.00016999,2]
[399973406,1766958645175,-3337807.01668933,0.00017,2]
[399973407,1766958645185,-459289.31572081,0.00017,2]
[399973408,1766958645723,-1087.41118798,0.00013055,2]
[399973460,1766958647433,-173.62906968,0.00013055,2]
[399973461,1766958682688,-213.87577476,0.00013054,2]
[399973462,1766958685767,-86.12422524,0.00013054,2]
[399973463,1766958685790,-98.2746683,0.00013054,2]
[399973464,1766958687917,-51.7253317,0.00013054,2]
[399973465,1766958687941,-132.88258198,0.00013055,2]
[399973466,1766958694133,-117.11741802,0.00013055,2]
[399973467,1766958694155,-82.88258198,0.00013055,2]
[399973468,1766958696841,-182.23310591,0.00013055,2]
[399973469,1766958702238,-153.72,0.00013055,2]
[399973470,1766958709441,-267.45387432,0.00013055,2]
[399973471,1766958712097,-372.55252915,0.00013055,2]
[399973472,1766958718252,-414.58814077,0.00013055,2]
[399973473,1766958721497,-221.90119514,0.00013055,2]
[399973474,1766958725701,-163.89,0.00013055,2]
[399973475,1766958733394,-491.43910273,0.00013055,2]
[399973476,1766958735457,-167.02443224,0.00013055,2]
[399973477,1766958753885,-344.59228627,0.0001299,2]
[399973485,1766958938495,1556.449,0.00012794,2]
[399973486,1766958938596,170.797,0.00012794,2]
[399973489,1766958997725,-167.02443224,0.00012953,2]
[399973490,1766958997747,-107.10177397,0.00012988,2]
[399973491,1766959000439,-305.4077139,0.00012988,2]
[399973494,1766959042715,-162.00696521,0.00012988,2]
[399973495,1766959042736,-124.08047479,0.0001302,2]
[399973496,1766959222759,-163.02893377,0.00012955,2]
[399973497,1766959230039,-182.34796988,0.00012955,2]
[399973498,1766959232130,-500.0,0.00012955,2]
[399973499,1766959234732,-166.33236124,0.00012955,2]
[399973500,1766959237124,-373.95916282,0.00012955,2]
[399973501,1766959240756,-178.24211257,0.00012955,2]
[399973502,1766959245084,-197.4140413,0.00012955,2]
[399973503,1766959247141,-192.75356912,0.00012955,2]
[399973504,1766959249090,-671.52377087,0.00012955,2]
[399973505,1766959250463,-187.76251217,0.00012955,2]
[399973506,1766959254552,-430.84099006,0.00012955,2]
[399973507,1766959256239,-262.67722882,0.00012955,2]
[399973508,1766959257571,-229.22521654,0.00012955,2]
[399973509,1766959259296,3490.700535,0.0001289,2]
[399973510,1766959261682,-207.4122511,0.00012955,2]
[399973511,1766959264228,-410.58755797,0.00012955,2]
[399973512,1766959269854,-455.30712212,0.00012955,2]
[399973513,1766959271661,229.225217,0.0001289,2]
[399973514,1766959272999,-201.371709,0.00012955,2]
[399973515,1766959277240,-225.32135981,0.00012955,2]
[399973535,1766959588699,166.66,0.00012329,2]
[399973536,1766959589041,166.66,0.00012557,2]
[399973537,1766959589119,166.66,0.00012786,2]
[399973554,1766959745244,-1200.0,0.00012953,2]
[399973555,1766959745584,-1200.0,0.00012954,2]
[399973556,1766959745614,-300.0,0.00012954,2]
[399973557,1766959745643,-1276.4957,0.00012955,2]
[399973558,1766959745677,-300.0,0.00012987,2]
[399973559,1766959745706,-267.0,0.00012987,2]
[399973560,1766959745737,-517.06480779,0.00012988,2]
[399973561,1766959745767,-2599.38316633,0.00012988,2]
[399973562,1766959745797,-166.66,0.00013014,2]
[399973563,1766959745826,-391.52136296,0.00013019,2]
[399973564,1766959745855,-257.0,0.0001302,2]
[399973565,1766959745888,-151.0,0.00013048,2]
[399973566,1766959745919,-151.0,0.00013048,2]
[399973567,1766959745952,-158.86938583,0.00013048,2]
[399973568,1766959745981,-151.0,0.00013052,2]
[399973569,1766959746012,-150.0,0.00013053,2]
[399973570,1766959746041,-526.01115418,0.00013054,2]
[399973571,1766959746054,-473.98884582,0.00013054,2]
[399973572,1766959746066,-575.72,0.00013054,2]
[399973573,1766959746075,-150.29115418,0.00013054,2]
[399973574,1766959746087,-349.70884582,0.00013054,2]
[399973575,1766959746096,-256.9820428,0.00013054,2]
[399973576,1766959746105,-189.53090234,0.00013054,2]
[399973577,1766959746115,-403.77820904,0.00013054,2]
[399973578,1766959746133,-89.186568,0.00013054,2]
[399973579,1766959746142,-152.28071681,0.00013054,2]
[399973580,1766959746151,-58.53271519,0.00013054,2]
[399973581,1766959746171,-441.46728481,0.00013054,2]
[399973582,1766959746182,-500.0,0.00013054,2]
[399973583,1766959746192,-335.02841519,0.00013054,2]
[399973584,1766959746205,-164.97158481,0.00013054,2]
[399973585,1766959746215,-135.02841519,0.00013054,2]
[399973586,1766959746227,-267.0,0.00013054,2]
[399973587,1766959746240,-97.97158481,0.00013054,2]
[399973588,1766959746249,-419.09322298,0.00013054,2]
[399973589,1766959746281,-80.90677702,0.00013054,2]
[399973590,1766959746291,-500.0,0.00013054,2]
[399973591,1766959746300,-500.0,0.00013054,2]
[399973592,1766959746311,-500.0,0.00013054,2]
[399973593,1766959746322,-312.0373767,0.00013054,2]
[399973594,1766959746332,-500.0,0.00013054,2]
[399973595,1766959746341,-206.43901261,0.00013054,2]
[399973596,1766959746352,-166.66,0.00013054,2]
[399973597,1766959746363,-126.90098739,0.00013054,2]
[399973598,1766959746372,-264.62037557,0.00013054,2]
[399973599,1766959746383,-235.37962443,0.00013054,2]
[399973600,1766959746393,-21.62037557,0.00013054,2]
[399973601,1766959746404,-151.0,0.00013054,2]
[399973602,1766959746419,-151.0,0.00013054,2]
[399973603,1766959746430,-158.86938583,0.00013054,2]
[399973604,1766959746442,-17.5102386,0.00013054,2]
[399973605,1766959746453,-133.4897614,0.00013054,2]
[399973606,1766959746468,-150.0,0.00013054,2]
[399973607,1766959746479,-216.5102386,0.00013054,2]
[399973608,1766959746489,-500.0,0.00013054,2]
[399973609,1766959746499,-283.4897614,0.00013054,2]
[399973610,1766959750029,237.0,0.0003,120]
[399973611,1766959764419,4052.858248,0.00012855,2]
[399973612,1766959764447,10000.01,0.00012855,2]
[399973613,1766959764474,10000.01,0.00012855,2]
[399973614,1766959764499,10000.01,0.00012855,2]
[399973615,1766959764526,10000.01,0.00012855,2]
[399973616,1766959764553,10000.01,0.00012855,2]
[399973617,1766959764578,10000.01,0.00012855,2]
[399973618,1766959764605,10000.01,0.00012855,2]
[399973619,1766959764633,10000.01,0.00012855,2]
[399973620,1766959764661,10000.01,0.00012855,2]
[399973621,1766959764694,3418.69394187,0.00012855,2]
[399973622,1766959764720,3418.69394187,0.00012855,2]
[399973623,1766959764745,3418.69394187,0.00012855,2]
[399973624,1766959764771,3418.69394187,0.00012855,2]
[399973625,1766959764797,3418.69394187,0.00012855,2]
[399973626,1766959764821,3418.69394187,0.00012855,2]
[399973627,1766959764846,3418.69394187,0.00012855,2]
[399973628,1766959764871,3418.69394187,0.00012855,2]
[399973629,1766959764898,3418.69394187,0.00012855,2]
[399973630,1766959764923,3418.69394187,0.00012855,2]
[399973631,1766959765112,-323.12183804,0.00012855,2]
[399973632,1766959766655,-4795.28009684,0.00012855,2]
[399973633,1766959766807,-10000.01,0.00012855,2]
[399973634,1766959767071,-160.66260409,0.00012855,2]
[399973635,1766959768635,-247.48230005,0.00012855,2]
[399973636,1766959770665,-175.23372225,0.00012855,2]
[399973637,1766959770701,-10000.01,0.00012855,2]
[399973638,1766959770793,-10000.01,0.00012855,2]
[399973639,1766959771049,-10000.01,0.00012855,2]
[399973640,1766959771065,-10000.01,0.00012855,2]
[399973641,1766959771185,-10000.01,0.00012855,2]
[399973642,1766959771291,-10000.01,0.00012855,2]
[399973643,1766959771415,-10000.01,0.00012855,2]
[399973644,1766959771523,-10000.01,0.00012855,2]
[399973645,1766959771662,-10000.01,0.00012855,2]
[399973646,1766959771758,-10000.01,0.00012855,2]
[399973647,1766959771861,-10000.01,0.00012855,2]
[399973648,1766959771966,-10000.01,0.00012855,2]
[399973649,1766959772066,-10000.01,0.00012855,2]
[399973650,1766959772125,-660.2024898,0.00012855,2]
[399973651,1766959772199,-10000.01,0.00012855,2]
[399973652,1766959772335,-10000.01,0.00012855,2]
[399973653,1766959774261,-443.91783557,0.00012855,2]
[399973654,1766959776309,-243.22392147,0.00012855,2]
[399973655,1766959776742,-10000.01,0.00012855,2]
[399973656,1766959776877,-10000.01,0.00012855,2]
[399973657,1766959777019,-10000.01,0.00012855,2]
[399973658,1766959777155,-10000.01,0.00012855,2]
[399973659,1766959777752,-10000.01,0.00012855,2]
[399973660,1766959777882,-10000.01,0.00012855,2]
[399973661,1766959778022,-10000.01,0.00012855,2]
[399973662,1766959778133,-10000.01,0.00012855,2]
[399973663,1766959778238,-10000.01,0.00012855,2]
[399973664,1766959778354,-10000.01,0.00012855,2]
[399973665,1766959778476,-10000.01,0.00012855,2]
[399973666,1766959778600,-10000.01,0.00012855,2]
[399973667,1766959778720,-10000.01,0.00012855,2]
[399973668,1766959778835,-10000.01,0.00012855,2]
[399973669,1766959778969,-10000.01,0.00012855,2]
[399973670,1766959779456,-181.22537532,0.00012855,2]
[399973671,1766959782630,-286.11407827,0.00012855,2]
[399973672,1766959785232,-273.52029713,0.00012855,2]
[399973673,1766959789324,-194.10623019,0.00012855,2]
[399973674,1766959792330,-521.77459167,0.00012855,2]
[399973675,1766959793535,-155.26093895,0.00012855,2]
[399973676,1766959797079,-215.48741753,0.00012855,2]
[399973677,1766959798635,-238.0,0.00012855,2]
[399973678,1766959800206,-235.73486716,0.00012855,2]
[399973679,1766959801150,1200.0,0.00012854,2]
[399973680,1766959801189,300.0,0.00012854,2]
[399973681,1766959801332,300.0,0.00012854,2]
[399973682,1766959802336,-276.18542143,0.00012855,2]
[399973683,1766959803558,255.0,0.00012855,2]
[399973684,1766959805326,-369.7593055,0.00012855,2]
[399973685,1766959806820,-319.47994353,0.00012855,2]
[399973686,1766959809878,-431.75930457,0.00012855,2]
[399973687,1766959813612,-242.78048737,0.00012855,2]
[399973688,1766959815723,-1060.1599741,0.00012855,2]
[399973689,1766959817139,-469.56049341,0.00012855,2]
[399973690,1766959818674,-279.46116403,0.00012855,2]
[399973691,1766959821282,-324.40644022,0.00012855,2]
[399973692,1766959824849,-313.01347322,0.00012855,2]
[399973693,1766959826871,-275.6584545,0.00012855,2]
[399973694,1766959829563,-387.67651302,0.00012855,2]
[399973695,1766959831493,-500.0,0.00012855,2]
[399973699,1766959831759,-724.37785151,0.00012855,2]
[399973700,1766959831771,-18110.08847593,0.00012855,2]
[399973701,1766959831816,-4812.93284303,0.00012855,2]
[399973702,1766959831980,-11353.67673363,0.00012855,2]
[399973704,1766959831994,-1533.88282559,0.00012855,2]